[Event "Late-Titled-Tuesday-Blitz-May-28-2024"]
[Site "Chess.com"]
[Date "2024.05.28"]
[Round "4"]
[White "Genghis_K"]
[Black "Sondremelaa"]
[Result "1-0"]
[WhiteElo "2935"]
[BlackElo "2577"]
[TimeControl "180+1"]
[EndTime "14:35:41 PDT"]
[Termination "Genghis_K won by resignation"]

1. e4 {[%clk 0:02:57.1]} 1... e5 {[%clk 0:02:57.4]} 2. Nf3 {[%clk 0:02:57.1]}
2... Nc6 {[%clk 0:02:58]} 3. d4 {[%clk 0:02:56.4]} 3... exd4 {[%clk 0:02:57.9]}
4. Nxd4 {[%clk 0:02:56.1]} 4... Nf6 {[%clk 0:02:57.8]} 5. Nxc6 {[%clk
0:02:55.7]} 5... bxc6 {[%clk 0:02:54.2]} 6. Bd3 {[%clk 0:02:55.9]} 6... d5
{[%clk 0:02:53.4]} 7. exd5 {[%clk 0:02:55]} 7... cxd5 {[%clk 0:02:54.3]} 8. O-O
{[%clk 0:02:54.9]} 8... Be7 {[%clk 0:02:54.8]} 9. c4 {[%clk 0:02:55.1]} 9... O-O
{[%clk 0:02:54.4]} 10. Nc3 {[%clk 0:02:54.7]} 10... c6 {[%clk 0:02:53.9]} 11.
cxd5 {[%clk 0:02:53.4]} 11... Nxd5 {[%clk 0:02:51.9]} 12. Nxd5 {[%clk
0:02:43.7]} 12... Qxd5 {[%clk 0:02:50.4]} 13. Qc2 {[%clk 0:02:40.1]} 13... g6
{[%clk 0:02:47]} 14. Be4 {[%clk 0:02:34.5]} 14... Bf5 {[%clk 0:02:03.7]} 15.
Bxf5 {[%clk 0:02:24]} 15... Qxf5 {[%clk 0:02:02.9]} 16. Qxf5 {[%clk 0:02:22.4]}
16... gxf5 {[%clk 0:02:03]} 17. Bh6 {[%clk 0:02:18.7]} 17... Rfe8 {[%clk
0:02:00.7]} 18. Rac1 {[%clk 0:02:17.7]} 18... Rac8 {[%clk 0:01:58.3]} 19. Rfe1
{[%clk 0:02:16.1]} 19... Bf6 {[%clk 0:01:47.6]} 20. b3 {[%clk 0:02:10.2]} 20...
Re6 {[%clk 0:01:47.7]} 21. g3 {[%clk 0:01:56.5]} 21... Bg7 {[%clk 0:01:47.4]}
22. Be3 {[%clk 0:01:51.8]} 22... Rc7 {[%clk 0:01:42.9]} 23. Kf1 {[%clk
0:01:49.4]} 23... Bf6 {[%clk 0:01:43]} 24. Rc5 {[%clk 0:01:48.7]} 24... Re5
{[%clk 0:01:38.1]} 25. Rec1 {[%clk 0:01:40.9]} 25... Rxc5 {[%clk 0:01:37.7]} 26.
Rxc5 {[%clk 0:01:41.8]} 26... Kg7 {[%clk 0:01:36.7]} 27. Rxf5 {[%clk 0:01:40.6]}
27... Kg6 {[%clk 0:01:37.4]} 28. Ra5 {[%clk 0:01:40.7]} 28... Rd7 {[%clk
0:01:30.9]} 29. Rxa7 {[%clk 0:01:39.3]} 29... Rd1+ {[%clk 0:01:31.2]} 30. Kg2
{[%clk 0:01:38.7]} 30... Rb1 {[%clk 0:01:30.1]} 31. Ra6 {[%clk 0:01:36.6]} 31...
Rb2 {[%clk 0:01:30.1]} 32. Rxc6 {[%clk 0:01:36.6]} 32... Rxa2 {[%clk 0:01:30.1]}
33. Bd4 {[%clk 0:01:35.9]} 1-0

[Event "Late-Titled-Tuesday-Blitz-May-28-2024"]
[Site "Chess.com"]
[Date "2024.05.28"]
[Round "4"]
[White "LiemLe"]
[Black "bazar-wokzal"]
[Result "1-0"]
[WhiteElo "3029"]
[BlackElo "2598"]
[TimeControl "180+1"]
[EndTime "14:35:52 PDT"]
[Termination "LiemLe won by resignation"]

1. c4 {[%clk 0:03:00.9]} 1... e5 {[%clk 0:02:59.7]} 2. g3 {[%clk 0:03:00.8]}
2... h5 {[%clk 0:02:59.6]} 3. Nf3 {[%clk 0:02:59.7]} 3... e4 {[%clk 0:02:58.9]}
4. Nh4 {[%clk 0:02:59.9]} 4... g5 {[%clk 0:02:53.8]} 5. Ng2 {[%clk 0:02:48.1]}
5... h4 {[%clk 0:02:53.8]} 6. gxh4 {[%clk 0:02:48.7]} 6... g4 {[%clk 0:02:39.6]}
7. Nc3 {[%clk 0:02:46.9]} 7... f5 {[%clk 0:02:39.1]} 8. d3 {[%clk 0:02:44.6]}
8... exd3 {[%clk 0:02:20.2]} 9. Qxd3 {[%clk 0:02:45.5]} 9... d6 {[%clk
0:02:15.6]} 10. h3 {[%clk 0:02:40]} 10... gxh3 {[%clk 0:01:58.9]} 11. Rxh3
{[%clk 0:02:40.9]} 11... Nc6 {[%clk 0:01:58.2]} 12. Bg5 {[%clk 0:02:35]} 12...
Be7 {[%clk 0:01:56.5]} 13. Nf4 {[%clk 0:02:35.1]} 13... Ne5 {[%clk 0:01:51.6]}
14. Qd4 {[%clk 0:02:24.7]} 14... Nf6 {[%clk 0:01:49.2]} 15. Ncd5 {[%clk
0:02:17.4]} 15... c6 {[%clk 0:01:45.1]} 16. Nxe7 {[%clk 0:02:16.3]} 16... Qxe7
{[%clk 0:01:42]} 17. Re3 {[%clk 0:02:16]} 17... Kf7 {[%clk 0:01:31.9]} 18. O-O-O
{[%clk 0:02:12.6]} 18... c5 {[%clk 0:01:18.1]} 19. Qxd6 {[%clk 0:02:11.5]} 19...
Qxd6 {[%clk 0:01:18.2]} 20. Rxd6 {[%clk 0:02:12.4]} 20... Ne4 {[%clk 0:01:18.6]}
21. Rxe4 {[%clk 0:01:56.3]} 21... fxe4 {[%clk 0:01:18]} 22. Bg2 {[%clk
0:01:56.6]} 22... Bg4 {[%clk 0:01:03.2]} 23. Bxe4 {[%clk 0:01:55.7]} 23... Nxc4
{[%clk 0:00:43.9]} 24. Bd5+ {[%clk 0:01:55.7]} 1-0

[Event "Late-Titled-Tuesday-Blitz-May-28-2024"]
[Site "Chess.com"]
[Date "2024.05.28"]
[Round "4"]
[White "ChEsper99"]
[Black "gxbg2000"]
[Result "0-1"]
[WhiteElo "2229"]
[BlackElo "2002"]
[TimeControl "180+1"]
[EndTime "14:36:02 PDT"]
[Termination "gxbg2000 won by resignation"]

1. e4 {[%clk 0:02:59.7]} 1... c5 {[%clk 0:02:58.2]} 2. Nc3 {[%clk 0:02:59]} 2...
d6 {[%clk 0:02:58]} 3. f4 {[%clk 0:02:59.1]} 3... g6 {[%clk 0:02:58.1]} 4. Nf3
{[%clk 0:02:56.2]} 4... Bg7 {[%clk 0:02:58.1]} 5. Bc4 {[%clk 0:02:51.9]} 5...
Nf6 {[%clk 0:02:57.7]} 6. O-O {[%clk 0:02:51.7]} 6... O-O {[%clk 0:02:57.7]} 7.
d3 {[%clk 0:02:50.8]} 7... Nc6 {[%clk 0:02:57.5]} 8. Kh1 {[%clk 0:02:49.3]} 8...
a6 {[%clk 0:02:57.8]} 9. a4 {[%clk 0:02:49.1]} 9... Nd4 {[%clk 0:02:53.9]} 10.
Nxd4 {[%clk 0:02:48.7]} 10... cxd4 {[%clk 0:02:53.5]} 11. Nd5 {[%clk 0:02:49.1]}
11... Nxd5 {[%clk 0:02:53.5]} 12. Bxd5 {[%clk 0:02:50]} 12... e6 {[%clk
0:02:50.7]} 13. Bb3 {[%clk 0:02:50.3]} 13... Bd7 {[%clk 0:02:48.3]} 14. Qe1
{[%clk 0:02:39.3]} 14... Rc8 {[%clk 0:02:34]} 15. a5 {[%clk 0:02:38.7]} 15...
Kh8 {[%clk 0:02:32.6]} 16. g4 {[%clk 0:02:30.1]} 16... Rc5 {[%clk 0:02:27.7]}
17. g5 {[%clk 0:02:28.7]} 17... Rb5 {[%clk 0:02:22.6]} 18. Bd2 {[%clk
0:02:21.4]} 18... Qc7 {[%clk 0:02:16.1]} 19. Qh4 {[%clk 0:02:18.1]} 19... Rxb3
{[%clk 0:02:04.7]} 20. cxb3 {[%clk 0:02:19]} 20... Qc2 {[%clk 0:02:04.5]} 21.
Qe1 {[%clk 0:02:06.8]} 21... Qxd3 {[%clk 0:02:04]} 22. Rc1 {[%clk 0:01:57.9]}
22... Qxb3 {[%clk 0:02:03.3]} 23. Bb4 {[%clk 0:01:39.6]} 23... Bc6 {[%clk
0:01:54.2]} 24. Bxd6 {[%clk 0:01:37.2]} 24... Rd8 {[%clk 0:01:53.4]} 25. Bc7
{[%clk 0:01:32.4]} 25... Rd7 {[%clk 0:01:52.8]} 26. Bb6 {[%clk 0:01:32.5]} 26...
d3 {[%clk 0:01:53.3]} 27. Rd1 {[%clk 0:01:23.9]} 27... Bxb2 {[%clk 0:01:39.8]}
28. Kg1 {[%clk 0:01:19.7]} 28... Bc3 {[%clk 0:01:36.7]} 29. Qe3 {[%clk
0:01:17.9]} 29... d2 {[%clk 0:01:33.2]} 30. Rf3 {[%clk 0:01:14.6]} 30... Qxd1+
{[%clk 0:01:30.5]} 0-1

[Event "Late-Titled-Tuesday-Blitz-May-28-2024"]
[Site "Chess.com"]
[Date "2024.05.28"]
[Round "4"]
[White "yujiarun18"]
[Black "Blackwhite017"]
[Result "0-1"]
[WhiteElo "2250"]
[BlackElo "2053"]
[TimeControl "180+1"]
[EndTime "14:36:03 PDT"]
[Termination "Blackwhite017 won by resignation"]

1. e4 {[%clk 0:03:00.9]} 1... c5 {[%clk 0:02:55.8]} 2. Nf3 {[%clk 0:02:59.5]}
2... Nc6 {[%clk 0:02:55.8]} 3. d4 {[%clk 0:03:00.1]} 3... cxd4 {[%clk
0:02:56.4]} 4. Nxd4 {[%clk 0:03:00.8]} 4... g6 {[%clk 0:02:56.7]} 5. c4 {[%clk
0:03:00]} 5... Nf6 {[%clk 0:02:55.9]} 6. f3 {[%clk 0:02:59.6]} 6... d6 {[%clk
0:02:55]} 7. Be3 {[%clk 0:02:59.8]} 7... Nxd4 {[%clk 0:02:54.3]} 8. Bxd4 {[%clk
0:02:59.5]} 8... Bg7 {[%clk 0:02:55]} 9. Nc3 {[%clk 0:02:59.1]} 9... O-O {[%clk
0:02:55.6]} 10. Be2 {[%clk 0:02:58.4]} 10... Qa5 {[%clk 0:02:54.2]} 11. Qd2
{[%clk 0:02:56.8]} 11... Be6 {[%clk 0:02:53.6]} 12. O-O {[%clk 0:02:56.3]} 12...
Rfc8 {[%clk 0:02:53.3]} 13. b3 {[%clk 0:02:53.3]} 13... a6 {[%clk 0:02:52.4]}
14. Rac1 {[%clk 0:02:50.6]} 14... Nd7 {[%clk 0:02:40.8]} 15. Be3 {[%clk
0:02:47.5]} 15... b5 {[%clk 0:02:36.2]} 16. Nd5 {[%clk 0:02:42.6]} 16... Qxd2
{[%clk 0:02:35]} 17. Bxd2 {[%clk 0:02:42.2]} 17... Bxd5 {[%clk 0:02:30.9]} 18.
cxd5 {[%clk 0:02:41]} 18... Bd4+ {[%clk 0:02:30.4]} 19. Kh1 {[%clk 0:02:40.5]}
19... Bb2 {[%clk 0:02:26.4]} 20. Rxc8+ {[%clk 0:02:34.5]} 20... Rxc8 {[%clk
0:02:27.3]} 21. Bd3 {[%clk 0:02:34.5]} 21... Nb6 {[%clk 0:01:50]} 22. Rb1 {[%clk
0:02:32.4]} 22... Bd4 {[%clk 0:01:42.1]} 23. Ba5 {[%clk 0:02:28]} 23... Nd7
{[%clk 0:01:36.9]} 24. a4 {[%clk 0:02:24]} 24... bxa4 {[%clk 0:01:30.4]} 25.
bxa4 {[%clk 0:02:24]} 25... Nc5 {[%clk 0:01:29.6]} 26. Bc2 {[%clk 0:02:14]}
26... Nb7 {[%clk 0:01:18]} 27. Rxb7 {[%clk 0:02:06.3]} 27... Rxc2 {[%clk
0:01:18.1]} 28. h3 {[%clk 0:01:53.6]} 28... Rc1+ {[%clk 0:01:06.4]} 29. Kh2
{[%clk 0:01:50.2]} 29... Be5+ {[%clk 0:01:07]} 30. g3 {[%clk 0:01:50.6]} 30...
Rc2+ {[%clk 0:01:05.9]} 31. Kg1 {[%clk 0:01:50.7]} 31... Bxg3 {[%clk 0:00:59.8]}
32. Ra7 {[%clk 0:01:45.3]} 32... Bf2+ {[%clk 0:00:59.6]} 0-1

[Event "Late-Titled-Tuesday-Blitz-May-28-2024"]
[Site "Chess.com"]
[Date "2024.05.28"]
[Round "4"]
[White "Javadovvv"]
[Black "Hirna2005"]
[Result "1-0"]
[WhiteElo "2531"]
[BlackElo "2357"]
[TimeControl "180+1"]
[EndTime "14:36:23 PDT"]
[Termination "Javadovvv won by checkmate"]

1. d4 {[%clk 0:02:56]} 1... g6 {[%clk 0:03:00.5]} 2. Nf3 {[%clk 0:02:56.4]} 2...
Bg7 {[%clk 0:03:01.1]} 3. Bf4 {[%clk 0:02:57]} 3... d6 {[%clk 0:03:01.5]} 4. e3
{[%clk 0:02:56.4]} 4... Nf6 {[%clk 0:03:00.9]} 5. h3 {[%clk 0:02:56.7]} 5... O-O
{[%clk 0:03:00.6]} 6. Be2 {[%clk 0:02:56.8]} 6... Nc6 {[%clk 0:02:59.8]} 7. O-O
{[%clk 0:02:56.9]} 7... Bf5 {[%clk 0:02:59.5]} 8. c4 {[%clk 0:02:56.9]} 8... Qc8
{[%clk 0:02:57.1]} 9. Nc3 {[%clk 0:02:56.8]} 9... Re8 {[%clk 0:02:55.7]} 10. Rc1
{[%clk 0:02:55.5]} 10... e5 {[%clk 0:02:51.3]} 11. Bh2 {[%clk 0:02:55.5]} 11...
Ne4 {[%clk 0:02:48]} 12. a3 {[%clk 0:02:42.1]} 12... exd4 {[%clk 0:02:40.4]} 13.
exd4 {[%clk 0:02:38.1]} 13... Nxc3 {[%clk 0:02:38.3]} 14. Rxc3 {[%clk
0:02:37.8]} 14... Be4 {[%clk 0:02:33.6]} 15. c5 {[%clk 0:02:06.1]} 15... Bxf3
{[%clk 0:02:30.7]} 16. Bxf3 {[%clk 0:02:05.4]} 16... Bxd4 {[%clk 0:02:25]} 17.
Bxc6 {[%clk 0:02:00.5]} 17... Bxc3 {[%clk 0:02:24.1]} 18. Bxe8 {[%clk
0:02:00.5]} 18... Bxb2 {[%clk 0:02:16.7]} 19. Bxf7+ {[%clk 0:01:54.3]} 19...
Kxf7 {[%clk 0:02:15.3]} 20. Qb3+ {[%clk 0:01:54.3]} 20... Qe6 {[%clk 0:02:12]}
21. Qxb2 {[%clk 0:01:54.4]} 21... dxc5 {[%clk 0:02:12.6]} 22. Qxb7 {[%clk
0:01:52.9]} 22... Re8 {[%clk 0:02:11.7]} 23. Qxa7 {[%clk 0:01:45]} 23... c4
{[%clk 0:02:10.4]} 24. Qxc7+ {[%clk 0:01:44]} 24... Re7 {[%clk 0:02:10.3]} 25.
Qc5 {[%clk 0:01:43.9]} 25... Rd7 {[%clk 0:02:02.7]} 26. Bg3 {[%clk 0:01:41.6]}
26... Rd3 {[%clk 0:01:57.9]} 27. a4 {[%clk 0:01:37.8]} 27... c3 {[%clk
0:01:54.4]} 28. a5 {[%clk 0:01:37.8]} 28... Qa6 {[%clk 0:01:50.7]} 29. Rc1
{[%clk 0:01:35.7]} 29... h5 {[%clk 0:01:29.3]} 30. Rxc3 {[%clk 0:01:34.6]} 30...
Rd1+ {[%clk 0:01:29.3]} 31. Kh2 {[%clk 0:01:33.8]} 31... Qf1 {[%clk 0:01:24.2]}
32. Rf3+ {[%clk 0:01:27.7]} 32... Kg7 {[%clk 0:01:22]} 33. Qe5+ {[%clk 0:01:27]}
33... Kh6 {[%clk 0:01:19.8]} 34. Qh8+ {[%clk 0:01:16.2]} 34... Kg5 {[%clk
0:01:19.7]} 35. h4+ {[%clk 0:01:17.1]} 35... Kg4 {[%clk 0:01:19.6]} 36. Rf4#
{[%clk 0:01:17.7]} 1-0

[Event "Late-Titled-Tuesday-Blitz-May-28-2024"]
[Site "Chess.com"]
[Date "2024.05.28"]
[Round "4"]
[White "egnfanclub"]
[Black "Orest_Vovk"]
[Result "0-1"]
[WhiteElo "2337"]
[BlackElo "2523"]
[TimeControl "180+1"]
[EndTime "14:36:31 PDT"]
[Termination "Orest_Vovk won by resignation"]

1. e4 {[%clk 0:03:00.9]} 1... g5 {[%clk 0:02:53.8]} 2. d4 {[%clk 0:02:50]} 2...
g4 {[%clk 0:02:53.7]} 3. Nc3 {[%clk 0:02:50]} 3... Bg7 {[%clk 0:02:53.5]} 4. Bc4
{[%clk 0:02:45.3]} 4... c5 {[%clk 0:02:53.2]} 5. Nge2 {[%clk 0:02:41.2]} 5...
cxd4 {[%clk 0:02:51.5]} 6. Nxd4 {[%clk 0:02:39.3]} 6... d6 {[%clk 0:02:51.9]} 7.
O-O {[%clk 0:02:28.5]} 7... Nc6 {[%clk 0:02:50.9]} 8. Nf5 {[%clk 0:02:21.2]}
8... Bxf5 {[%clk 0:02:48.7]} 9. exf5 {[%clk 0:02:22.1]} 9... Bxc3 {[%clk
0:02:48.8]} 10. bxc3 {[%clk 0:02:21.5]} 10... Ne5 {[%clk 0:02:45.9]} 11. Bb5+
{[%clk 0:02:20.5]} 11... Kf8 {[%clk 0:02:46.2]} 12. Bf4 {[%clk 0:02:12.7]} 12...
h5 {[%clk 0:02:44.7]} 13. Re1 {[%clk 0:02:06.8]} 13... Qc7 {[%clk 0:02:38.2]}
14. Qd4 {[%clk 0:02:01.4]} 14... Nf6 {[%clk 0:02:31.5]} 15. Bxe5 {[%clk
0:01:48.2]} 15... dxe5 {[%clk 0:02:31.4]} 16. Rxe5 {[%clk 0:01:46.9]} 16... Rd8
{[%clk 0:02:29.6]} 17. Qc5 {[%clk 0:01:42.5]} 17... Qxc5 {[%clk 0:02:24.8]} 18.
Rxc5 {[%clk 0:01:42.1]} 18... Rd5 {[%clk 0:02:17.8]} 19. Rxd5 {[%clk 0:01:36.7]}
19... Nxd5 {[%clk 0:02:18.7]} 20. c4 {[%clk 0:01:28.7]} 20... Nc3 {[%clk
0:02:18.8]} 21. a4 {[%clk 0:01:08.3]} 21... a6 {[%clk 0:02:11.2]} 22. Bd7 {[%clk
0:01:07.4]} 22... Rh6 {[%clk 0:02:10.3]} 23. Bc8 {[%clk 0:01:02.2]} 23... Rb6
{[%clk 0:02:06.2]} 24. Kf1 {[%clk 0:01:01.2]} 24... Ke8 {[%clk 0:01:58.4]} 25.
f6 {[%clk 0:00:47.4]} 25... e6 {[%clk 0:01:54.6]} 26. Re1 {[%clk 0:00:29.2]}
26... Kd8 {[%clk 0:01:50.5]} 27. Bxe6 {[%clk 0:00:26.4]} 27... Rxe6 {[%clk
0:01:48.9]} 0-1

[Event "Late-Titled-Tuesday-Blitz-May-28-2024"]
[Site "Chess.com"]
[Date "2024.05.28"]
[Round "4"]
[White "Tibmat"]
[Black "Flaccidmoves"]
[Result "1-0"]
[WhiteElo "2687"]
[BlackElo "2492"]
[TimeControl "180+1"]
[EndTime "14:36:35 PDT"]
[Termination "Tibmat won by resignation"]

1. c4 {[%clk 0:03:00.9]} 1... Nf6 {[%clk 0:02:55.7]} 2. g3 {[%clk 0:03:00.5]}
2... g6 {[%clk 0:02:56.2]} 3. Bg2 {[%clk 0:03:01]} 3... Bg7 {[%clk 0:02:56.4]}
4. Nc3 {[%clk 0:03:01.9]} 4... O-O {[%clk 0:02:56.7]} 5. e4 {[%clk 0:03:02.5]}
5... e5 {[%clk 0:02:55.3]} 6. Nge2 {[%clk 0:03:02.6]} 6... Nc6 {[%clk
0:02:54.2]} 7. O-O {[%clk 0:03:03.2]} 7... d6 {[%clk 0:02:50.6]} 8. d3 {[%clk
0:03:03.6]} 8... Nd7 {[%clk 0:02:46.2]} 9. h3 {[%clk 0:03:01.9]} 9... Nc5 {[%clk
0:02:45]} 10. Be3 {[%clk 0:03:00.6]} 10... Ne6 {[%clk 0:02:43.8]} 11. Qd2 {[%clk
0:02:59.4]} 11... Ned4 {[%clk 0:02:32.6]} 12. Kh2 {[%clk 0:02:44.4]} 12... a5
{[%clk 0:02:27.7]} 13. Bh6 {[%clk 0:02:43.6]} 13... Be6 {[%clk 0:02:14.2]} 14.
Bxg7 {[%clk 0:02:36.5]} 14... Kxg7 {[%clk 0:02:15.1]} 15. f4 {[%clk 0:02:36.5]}
15... f5 {[%clk 0:02:09.3]} 16. Nxd4 {[%clk 0:02:15.2]} 16... Nxd4 {[%clk
0:02:07]} 17. Ne2 {[%clk 0:02:13.1]} 17... Nxe2 {[%clk 0:01:57]} 18. Qxe2 {[%clk
0:02:14]} 18... exf4 {[%clk 0:01:47.8]} 19. Rxf4 {[%clk 0:02:09.2]} 19... Qd7
{[%clk 0:01:41]} 20. Raf1 {[%clk 0:01:40.4]} 20... Rae8 {[%clk 0:01:38.2]} 21.
Qd2 {[%clk 0:01:40.4]} 21... b6 {[%clk 0:01:33.8]} 22. Qc3+ {[%clk 0:01:37.7]}
22... Kg8 {[%clk 0:01:34.3]} 23. exf5 {[%clk 0:01:34.2]} 23... Bxf5 {[%clk
0:01:27.3]} 24. Bd5+ {[%clk 0:01:26.9]} 24... Be6 {[%clk 0:01:16.1]} 25. Rxf8+
{[%clk 0:01:25.5]} 25... Rxf8 {[%clk 0:01:17]} 26. Rxf8+ {[%clk 0:01:25.6]}
26... Kxf8 {[%clk 0:01:17.9]} 27. Qh8+ {[%clk 0:01:20.5]} 27... Ke7 {[%clk
0:01:17.2]} 28. Qxh7+ {[%clk 0:01:16.7]} 28... Kd8 {[%clk 0:01:03]} 29. Qh8+
{[%clk 0:01:14.4]} 29... Ke7 {[%clk 0:00:59.8]} 30. Qg7+ {[%clk 0:01:14.8]}
30... Kd8 {[%clk 0:00:59.5]} 31. Qf6+ {[%clk 0:01:13.9]} 31... Qe7 {[%clk
0:00:55.8]} 32. Qxe6 {[%clk 0:01:09.3]} 1-0

[Event "Late-Titled-Tuesday-Blitz-May-28-2024"]
[Site "Chess.com"]
[Date "2024.05.28"]
[Round "4"]
[White "RichardShtivelband"]
[Black "RantomOpening"]
[Result "0-1"]
[WhiteElo "2387"]
[BlackElo "2567"]
[TimeControl "180+1"]
[EndTime "14:36:42 PDT"]
[Termination "RantomOpening won by resignation"]

1. e4 {[%clk 0:03:00.9]} 1... c5 {[%clk 0:02:55.5]} 2. Nf3 {[%clk 0:03:00.3]}
2... e6 {[%clk 0:02:55]} 3. d4 {[%clk 0:03:00.3]} 3... cxd4 {[%clk 0:02:55.9]}
4. Nxd4 {[%clk 0:03:00.8]} 4... Nf6 {[%clk 0:02:55.8]} 5. Nc3 {[%clk 0:03:01]}
5... Nc6 {[%clk 0:02:56]} 6. Ndb5 {[%clk 0:03:00.2]} 6... Bc5 {[%clk 0:02:56]}
7. Bf4 {[%clk 0:02:57.7]} 7... O-O {[%clk 0:02:55.8]} 8. Bc7 {[%clk 0:02:52.9]}
8... Qe7 {[%clk 0:02:55.9]} 9. Bd6 {[%clk 0:02:53]} 9... Bxd6 {[%clk 0:02:56.2]}
10. Qxd6 {[%clk 0:02:52.9]} 10... Qd8 {[%clk 0:02:56.3]} 11. O-O-O {[%clk
0:02:49.8]} 11... a6 {[%clk 0:02:51.8]} 12. Nc7 {[%clk 0:02:44.4]} 12... Ra7
{[%clk 0:02:51.5]} 13. e5 {[%clk 0:02:21.1]} 13... Ng4 {[%clk 0:02:49.5]} 14.
Ne4 {[%clk 0:02:10.6]} 14... b6 {[%clk 0:02:30.3]} 15. Nd5 {[%clk 0:01:54.6]}
15... exd5 {[%clk 0:02:28.7]} 16. Qxd5 {[%clk 0:01:55.5]} 16... Ngxe5 {[%clk
0:02:11.6]} 17. f4 {[%clk 0:01:53.8]} 17... Ng4 {[%clk 0:02:10.3]} 18. Bd3
{[%clk 0:01:43]} 18... Nb4 {[%clk 0:02:05.6]} 19. Qh5 {[%clk 0:01:40.8]} 19...
Nxd3+ {[%clk 0:02:04.9]} 20. Rxd3 {[%clk 0:01:40.5]} 20... Nf6 {[%clk
0:02:01.4]} 21. Nxf6+ {[%clk 0:01:39.9]} 21... Qxf6 {[%clk 0:02:02.3]} 22. f5
{[%clk 0:01:34.9]} 22... d6 {[%clk 0:01:57.7]} 23. g4 {[%clk 0:01:34.1]} 23...
Rc7 {[%clk 0:01:34.7]} 24. Rhd1 {[%clk 0:01:32.9]} 24... Rc6 {[%clk 0:01:19.8]}
25. Rf1 {[%clk 0:01:17.1]} 25... Qe5 {[%clk 0:01:07.3]} 26. Rh3 {[%clk
0:01:11.1]} 26... h6 {[%clk 0:01:07]} 27. g5 {[%clk 0:01:11]} 27... Bxf5 {[%clk
0:01:03.7]} 28. gxh6 {[%clk 0:01:03.4]} 28... Rxc2+ {[%clk 0:01:03.2]} 29. Kd1
{[%clk 0:01:03.2]} 29... Qd4+ {[%clk 0:00:57.3]} 0-1

[Event "Late-Titled-Tuesday-Blitz-May-28-2024"]
[Site "Chess.com"]
[Date "2024.05.28"]
[Round "4"]
[White "Masterisback04"]
[Black "Chaubunagungamaug1"]
[Result "1-0"]
[WhiteElo "2141"]
[BlackElo "2452"]
[TimeControl "180+1"]
[EndTime "14:36:42 PDT"]
[Termination "Masterisback04 won by resignation"]

1. e4 {[%clk 0:03:00.9]} 1... e6 {[%clk 0:02:58.2]} 2. d4 {[%clk 0:03:00.5]}
2... d5 {[%clk 0:02:59.1]} 3. e5 {[%clk 0:03:00.6]} 3... c5 {[%clk 0:02:59.2]}
4. c3 {[%clk 0:03:01]} 4... Nc6 {[%clk 0:02:59.7]} 5. Nf3 {[%clk 0:03:00.7]}
5... Qb6 {[%clk 0:02:55.5]} 6. a3 {[%clk 0:03:00.2]} 6... Bd7 {[%clk 0:02:53.5]}
7. b4 {[%clk 0:02:42.2]} 7... cxd4 {[%clk 0:02:51.2]} 8. cxd4 {[%clk 0:02:42.1]}
8... Nge7 {[%clk 0:02:43.7]} 9. Bb2 {[%clk 0:02:40.5]} 9... Nf5 {[%clk
0:02:39.3]} 10. Be2 {[%clk 0:02:40.8]} 10... Rc8 {[%clk 0:02:36.6]} 11. O-O
{[%clk 0:02:37.3]} 11... Na5 {[%clk 0:02:21.9]} 12. Nbd2 {[%clk 0:02:37.1]}
12... Nc4 {[%clk 0:02:17.7]} 13. Nxc4 {[%clk 0:02:37.3]} 13... dxc4 {[%clk
0:02:18.6]} 14. Rc1 {[%clk 0:02:37.6]} 14... Bb5 {[%clk 0:02:12.1]} 15. a4
{[%clk 0:02:28.4]} 15... Bc6 {[%clk 0:02:00.7]} 16. Bxc4 {[%clk 0:01:37.3]}
16... Qxb4 {[%clk 0:01:28.2]} 17. d5 {[%clk 0:01:22]} 17... exd5 {[%clk
0:01:16.7]} 18. Bxd5 {[%clk 0:00:47.6]} 18... Qxb2 {[%clk 0:01:04.4]} 19. e6
{[%clk 0:00:45.8]} 19... f6 {[%clk 0:00:52]} 20. Bxc6+ {[%clk 0:00:45.9]} 1-0

[Event "Late-Titled-Tuesday-Blitz-May-28-2024"]
[Site "Chess.com"]
[Date "2024.05.28"]
[Round "4"]
[White "GiorgianBarbosa"]
[Black "Statham_01"]
[Result "0-1"]
[WhiteElo "2513"]
[BlackElo "2699"]
[TimeControl "180+1"]
[EndTime "14:36:44 PDT"]
[Termination "Statham_01 won by resignation"]

1. c4 {[%clk 0:03:00.2]} 1... e5 {[%clk 0:03:00]} 2. g3 {[%clk 0:03:01.1]} 2...
Nf6 {[%clk 0:03:00.6]} 3. Bg2 {[%clk 0:03:01.4]} 3... c6 {[%clk 0:03:01.2]} 4.
Nf3 {[%clk 0:03:01.2]} 4... e4 {[%clk 0:03:01.4]} 5. Nd4 {[%clk 0:03:01.8]} 5...
Qb6 {[%clk 0:03:01.4]} 6. Nc2 {[%clk 0:03:01.5]} 6... d5 {[%clk 0:03:00.7]} 7.
cxd5 {[%clk 0:03:02.4]} 7... cxd5 {[%clk 0:03:01]} 8. O-O {[%clk 0:03:03.3]}
8... h5 {[%clk 0:03:01.4]} 9. d3 {[%clk 0:03:03.7]} 9... h4 {[%clk 0:02:59.9]}
10. Bg5 {[%clk 0:02:58.5]} 10... hxg3 {[%clk 0:02:58.9]} 11. hxg3 {[%clk
0:02:58.5]} 11... Ng4 {[%clk 0:02:56.9]} 12. dxe4 {[%clk 0:02:53.8]} 12... Qg6
{[%clk 0:02:44]} 13. Qxd5 {[%clk 0:02:47.4]} 13... Nc6 {[%clk 0:02:41.6]} 14.
Nd4 {[%clk 0:02:31.1]} 14... Be6 {[%clk 0:02:27.4]} 15. Nxe6 {[%clk 0:02:25.4]}
15... fxe6 {[%clk 0:02:28.3]} 16. Qb5 {[%clk 0:02:25.4]} 16... Qh5 {[%clk
0:02:07.7]} 17. Rc1 {[%clk 0:02:17.4]} 17... Be7 {[%clk 0:01:52.5]} 18. Rxc6
{[%clk 0:01:27.1]} 18... O-O {[%clk 0:01:50.9]} 19. f3 {[%clk 0:01:02.5]} 19...
bxc6 {[%clk 0:01:34.6]} 20. Qxc6 {[%clk 0:00:50]} 20... Bxg5 {[%clk 0:01:23.4]}
21. Qxe6+ {[%clk 0:00:49.9]} 21... Kh8 {[%clk 0:01:23.8]} 22. f4 {[%clk
0:00:41.9]} 22... Qh2+ {[%clk 0:01:17.8]} 23. Kf1 {[%clk 0:00:41.8]} 23... Qxg3
{[%clk 0:01:17]} 24. Kg1 {[%clk 0:00:38.4]} 24... Qe1+ {[%clk 0:01:14.3]} 25.
Bf1 {[%clk 0:00:37.8]} 25... Qf2+ {[%clk 0:01:14.6]} 0-1